bitfinex/quotes_ETHUSD_20250129
["timestamp","ask_amount","ask_price","bid_price","bid_amount"]
[1738183619587,0.6723,3131.6,3130.3,0.7676]
[1738183619788,3.19382,3131.1,3130.4,3.19447]
[1738183620123,3.19361,3131.3,3130.7,3.19417]
[1738183620421,3.19244,3132.4,3130.8,0.7739]
[1738183620601,3.19275,3132.1,3130.9,0.55]
[1738183620803,3.19275,3132.1,3131.5,3.19334]
[1738183621014,3.19254,3132.3,3131.6,0.7739]
[1738183621180,3.1921,3132.8,3132.1,3.19268]
[1738183621385,3.19186,3133.0,3132.1,3.19268]
[1738183621594,3.64162731,3133.8,3132.1,3.19268]
[1738183621595,3.19143,3133.4,3132.1,3.19274]
[1738183621791,3.19241,3132.5,3132.1,0.7708]
[1738183621991,3.19264,3132.2,3131.4,0.7708]
[1738183622208,3.19247,3132.4,3131.4,3.7708]
[1738183622411,3.19172,3133.1,3132.3,3.1925]
[1738183622614,3.19162,3133.2,3132.5,3.19225]
[1738183622820,3.19192,3133.0,3132.4,4.02235]
[1738183623026,0.45054731,3133.8,3132.6,3.19223]
[1738183623027,3.64158731,3133.8,3132.6,3.19223]
[1738183623235,3.19119,3133.7,3133.1,3.19172]
[1738183623377,3.19124,3133.6,3133.0,3.1918]
[1738183623582,0.6723,3134.1,3133.2,0.7675]
[1738183623791,0.6723,3134.7,3133.3,3.19143]
[1738183624040,9.5709,3134.5,3133.2,0.7675]
[1738183624338,3.19154,3133.3,3132.7,0.7675]
[1738183624533,3.19191,3133.0,3132.7,0.7675]
[1738183624735,3.19169,3133.2,3132.7,0.7675]
[1738183624895,3.19183,3133.0,3132.7,0.7675]
[1738183625088,3.19129,3133.6,3132.7,3.95958]
[1738183625308,3.19084,3134.0,3133.3,3.19148]
[1738183625735,3.19057,3134.3,3133.6,3.19114]
[1738183626034,3.19059,3134.3,3133.4,0.8116]
[1738183626339,3.19064,3134.2,3133.4,4.00294]
[1738183626485,3.19023,3134.6,3133.8,3.19094]
[1738183626691,3.19006,3134.8,3134.2,3.19053]
[1738183627006,3.19017,3134.7,3134.3,0.7869]
[1738183627196,3.18938,3135.4,3134.3,0.7869]
[1738183627398,3.5735794,3135.3,3134.3,0.7869]
[1738183627601,3.18914,3135.7,3135.0,3.18971]
[1738183627801,3.18936,3135.5,3134.8,3.18997]
[1738183628017,3.18956,3135.3,3134.4,3.1904]
[1738183628345,3.18978,3135.1,3134.4,3.1904]
[1738183628492,3.1898,3135.0,3134.3,0.7869]
[1738183628692,3.18992,3134.9,3134.3,0.7869]
[1738183628896,3.1902,3134.6,3134.3,0.7869]
[1738183629691,3.1904,3134.4,3134.3,0.7869]
[1738183629935,3.1902,3134.6,3133.9,3.19084]
[1738183630119,3.19031,3134.5,3133.7,3.19104]
[1738183630447,3.19048,3134.4,3133.6,3.7787]
[1738183630600,0.41034155,3134.5,3133.6,0.7787]
[1738183630601,3.19092,3133.9,3133.6,0.7787]
[1738183630937,3.60070155,3134.5,3133.6,0.7787]
[1738183630938,3.19045,3134.4,3133.6,0.7787]
[1738183631137,3.19012,3134.7,3134.0,3.19079]
[1738183631345,3.19022,3134.6,3134.0,3.19079]
[1738183631714,3.19038,3134.5,3133.7,3.19111]
[1738183631913,3.19059,3134.3,3133.6,3.7787]
[1738183632116,0.319012,3134.7,3133.6,0.7787]
[1738183632117,3.19078,3134.1,3133.6,0.7787]
[1738183632314,3.1906,3134.3,3133.6,3.96989]
[1738183632632,3.19043,3134.4,3133.6,3.96989]
[1738183632633,3.19042,3134.4,3133.8,3.19098]
[1738183632841,3.18979,3135.0,3133.7,0.55]
[1738183633006,3.1907,3134.2,3133.6,3.96989]
[1738183633206,3.19042,3134.4,3133.7,3.19108]
[1738183633404,3.19037,3134.5,3133.9,3.19085]
[1738183633650,3.19051,3134.3,3133.7,3.19108]
[1738183633957,3.19059,3134.3,3133.6,3.9699]
[1738183634118,3.19059,3134.3,3133.6,0.7787]
[1738183634324,3.19059,3134.3,3133.7,3.1911]
[1738183634633,3.19013,3134.7,3133.7,0.55]
[1738183634839,3.19033,3134.5,3133.9,3.19087]
[1738183635154,3.509143,3134.7,3134.1,3.19069]
[1738183635320,3.19013,3134.7,3134.1,3.19069]
[1738183635519,3.1899,3134.9,3134.3,0.7895]
[1738183635736,3.18942,3135.4,3134.6,3.0]
[1738183636123,0.6723,3136.0,3134.5,3.0]
[1738183636124,3.18978,3135.1,3134.5,3.0]
[1738183636337,3.18952,3135.3,3134.6,3.19012]
[1738183636700,3.18998,3134.9,3134.3,0.7895]
[1738183636933,3.18956,3135.3,3134.3,0.7895]
[1738183637115,3.18966,3135.2,3134.6,3.19017]
[1738183637423,3.18944,3135.4,3134.7,3.19008]
[1738183637721,3.18956,3135.3,3134.6,3.0]
[1738183638050,0.318956,3135.3,3134.5,3.0]
[1738183638205,3.18914,3135.7,3134.3,3.97992]
[1738183638412,3.18977,3135.1,3134.5,3.74022]
[1738183638775,3.18977,3135.1,3134.4,3.0]
[1738183638923,3.18977,3135.1,3134.4,6.19031]
[1738183639123,6.37955,3135.1,3134.4,6.19031]
[1738183639366,3.18977,3135.1,3134.4,3.0]
[1738183639740,3.18976,3135.1,3134.4,6.19038]
[1738183640069,3.18947,3135.4,3134.5,0.55]
[1738183640216,0.6723,3136.0,3134.5,3.74023]
[1738183640416,3.18977,3135.1,3134.3,3.97999]
[1738183640616,3.18977,3135.1,3134.4,3.0]
[1738183640817,3.18995,3134.9,3134.4,3.0]
[1738183641060,6.37955,3135.1,3134.5,3.19023]
[1738183641367,3.18981,3135.0,3134.4,3.0]
[1738183641575,3.18979,3135.0,3133.4,0.8152]
[1738183641865,3.19082,3134.0,3133.4,0.8152]
[1738183642074,3.19064,3134.2,3133.4,0.8152]
[1738183642221,3.19064,3134.2,3133.6,3.0]
[1738183642458,3.19009,3134.7,3133.9,0.802]
[1738183642637,3.18998,3134.9,3134.2,3.19054]
[1738183642969,3.1902,3134.6,3134.1,3.0]
[1738183643167,3.19042,3134.4,3133.9,3.802]
[1738183643370,3.19042,3134.4,3133.9,0.802]
[1738183643571,3.19081,3134.0,3133.9,0.802]
[1738183643869,3.19082,3134.0,3133.5,3.8089]
[1738183644173,3.19153,3133.3,3132.9,0.8224]
[1738183644684,3.1918,3133.1,3132.9,0.8224]
[1738183644876,3.19203,3132.8,3132.5,0.7605]
[1738183645038,3.19223,3132.6,3131.4,0.7605]
[1738183645227,3.19244,3132.4,3131.9,3.19293]
[1738183645427,3.19214,3132.7,3132.0,0.7605]
[1738183645621,3.19242,3132.5,3132.0,3.7605]
[1738183645919,3.19176,3133.1,3132.3,3.19247]
[1738183645920,3.19194,3132.9,3132.3,3.19247]
[1738183646120,3.19098,3133.9,3132.8,3.19197]
[1738183646375,3.19131,3133.6,3132.9,3.19191]
[1738183646674,0.6723,3134.2,3133.1,0.7877]
[1738183646823,3.19143,3133.4,3133.1,0.7877]
[1738183647027,3.19162,3133.2,3132.7,3.0]
[1738183647263,3.19213,3132.7,3132.1,0.7877]
[1738183647466,3.1916,3133.3,3132.4,3.1924]
[1738183647767,3.1916,3133.3,3132.0,3.1928]
[1738183647768,3.19155,3133.3,3132.8,3.97967]
[1738183647969,3.19163,3133.2,3132.8,0.7877]
[1738183648269,3.19173,3133.1,3132.8,0.7877]
[1738183648454,3.19143,3133.4,3132.9,3.74191]
[1738183648620,0.6723,3134.1,3132.9,4.194801]
[1738183648825,3.19132,3133.5,3132.9,0.55]
[1738183649066,3.19181,3133.1,3132.8,0.7877]
[1738183649272,3.19193,3132.9,3132.2,0.8091]
[1738183649566,3.19193,3132.9,3132.3,0.55]
[1738183649762,3.19193,3132.9,3132.4,3.0]
[1738183649763,3.19208,3132.8,3132.4,3.0]
[1738183649947,3.1921,3132.8,3132.2,7.00172]
[1738183650160,3.19195,3132.9,3132.2,7.00168]
[1738183650471,3.19179,3133.1,3132.5,3.19226]
[1738183650869,0.6723,3133.5,3132.3,0.55]
[1738183651025,3.19188,3133.0,3132.4,3.19237]
[1738183651436,3.19167,3133.2,3132.6,3.19222]
[1738183651678,3.19128,3133.6,3133.0,0.55]
[1738183651981,3.19128,3133.6,3132.7,0.8091]
[1738183651982,3.1919,3133.0,3132.7,0.8091]
[1738183652135,3.19129,3133.6,3132.7,0.8091]
[1738183652336,3.1919,3133.0,3132.7,0.8091]
[1738183652536,3.1913,3133.6,3132.7,0.8091]
[1738183652739,3.19178,3133.1,3132.7,0.8091]
[1738183652967,3.19146,3133.4,3132.8,0.55]
[1738183653186,3.19123,3133.6,3132.9,3.19184]
[1738183653352,3.19148,3133.4,3132.8,3.74197]
[1738183653555,3.19114,3133.7,3133.1,3.1917]
[1738183653787,3.19086,3134.0,3133.4,3.19142]
[1738183653997,3.19054,3134.3,3133.5,0.8091]
[1738183654305,3.19,3134.8,3134.2,3.19054]
[1738183654497,3.19016,3134.7,3134.1,0.8195]
[1738183654905,3.1903,3134.5,3134.1,0.8195]
[1738183655103,3.19016,3134.7,3134.2,3.19057]
[1738183655272,3.18989,3134.9,3134.3,3.0]
[1738183655678,3.19015,3134.7,3134.1,0.8195]
[1738183655873,3.19015,3134.7,3134.2,0.55]
[1738183656263,3.19015,3134.7,3134.2,3.55]
[1738183656503,3.19024,3134.6,3134.1,0.8195]
[1738183656673,3.19015,3134.7,3134.1,3.8195]
[1738183656893,3.19021,3134.6,3134.1,3.8195]
[1738183657093,3.19058,3134.3,3134.1,0.8195]
[1738183657296,3.18934,3135.5,3134.1,0.8195]
[1738183657547,3.19006,3134.8,3134.2,3.74059]
[1738183657818,3.1902,3134.6,3134.2,0.55]
[1738183658014,3.1905,3134.4,3134.1,0.8195]
[1738183658180,3.19022,3134.6,3134.1,0.8195]
[1738183658387,3.18933,3135.5,3134.2,3.1906]
[1738183658574,3.18959,3135.2,3134.4,3.74034]
[1738183658774,3.18984,3135.0,3134.4,3.74034]
[1738183659015,3.18984,3135.0,3134.4,0.55]
[1738183659179,3.18984,3135.0,3134.4,3.74039]
[1738183659180,6.37972,3135.0,3134.4,3.74039]
[1738183659881,3.19032,3134.5,3134.1,3.8195]
[1738183660101,3.18945,3135.4,3134.3,3.0]
[1738183660287,3.18986,3135.0,3134.4,0.55]
[1738183660613,3.18986,3135.0,3134.4,3.74039]
[1738183661215,3.18942,3135.4,3134.9,3.99279]
[1738183661574,3.18942,3135.4,3134.9,0.8029]
[1738183661780,0.318942,3135.4,3134.5,0.798]
[1738183662028,3.19019,3134.6,3134.5,0.798]
[1738183662211,3.19008,3134.8,3134.5,0.798]
[1738183662884,3.18991,3134.9,3134.5,0.798]
[1738183663230,3.18975,3135.1,3134.5,0.798]
[1738183663428,6.37952,3135.1,3134.5,3.98821]
[1738183663626,3.18975,3135.1,3134.5,4.70608]
[1738183664035,3.18975,3135.1,3134.5,1.51587]
[1738183664036,3.18989,3134.9,3134.5,1.51587]
[1738183664220,3.18915,3135.7,3134.5,0.798]
[1738183664221,3.19018,3134.7,3134.5,0.798]
[1738183664886,3.19018,3134.7,3134.1,0.798]
[1738183665100,3.19057,3134.3,3134.1,0.798]
[1738183665292,3.19041,3134.4,3134.1,0.798]
[1738183665826,0.7946,3134.4,3131.7,4.25003554]
[1738183666024,0.7946,3134.4,3132.7,3.1921]
[1738183666025,3.19161,3133.3,3132.7,3.1921]
[1738183666340,3.19161,3133.3,3132.8,3.19202]
[1738183666637,3.1918,3133.1,3132.5,3.19227]
[1738183666807,3.1918,3133.1,3132.6,3.0]
[1738183667344,3.19179,3133.1,3132.4,3.1924]
[1738183667506,3.19179,3133.1,3132.3,0.62855664]
[1738183667837,3.19179,3133.1,3132.6,0.55]
[1738183668137,6.38361,3133.1,3132.6,0.55]
[1738183668440,3.19185,3133.0,3132.6,0.55]
[1738183668739,3.19185,3133.0,3132.6,0.798]
[1738183668954,3.19199,3132.9,3132.6,0.798]
[1738183669153,3.19163,3133.2,3132.6,0.798]
[1738183669362,3.19211,3132.8,3132.2,0.798]
[1738183669567,3.19182,3133.1,3132.2,0.798]
[1738183669857,3.19194,3132.9,3132.2,0.798]
[1738183670011,3.19214,3132.7,3132.2,0.798]
[1738183670208,3.19194,3132.9,3132.2,0.798]
[1738183670411,3.19147,3133.4,3132.2,0.798]
[1738183670728,3.19159,3133.3,3132.5,0.55]
[1738183670918,3.98562,3133.8,3132.7,0.55]
[1738183671253,3.19128,3133.6,3132.8,1.166313]
[1738183671462,3.19132,3133.5,3132.8,1.166313]
[1738183671664,3.19128,3133.6,3132.9,3.55]
[1738183672009,0.8072,3134.2,3132.8,0.7921]
[1738183672010,3.19164,3133.2,3132.8,0.7921]
[1738183672355,3.19149,3133.4,3132.8,0.7921]
[1738183672592,3.19163,3133.2,3132.8,0.7921]
[1738183672707,1.103749,3133.4,3132.3,0.8053]
[1738183672912,3.19189,3133.0,3132.3,0.8053]
[1738183673140,3.97607,3133.4,3132.3,0.8053]
[1738183673320,3.19187,3133.0,3132.4,0.55]
[1738183673541,0.8332,3133.8,3132.6,3.55]
[1738183673710,3.19141,3133.5,3132.8,3.742]
[1738183673913,3.19148,3133.4,3133.0,0.55]
[1738183674112,3.19175,3133.1,3132.9,0.8239]
[1738183674309,3.19138,3133.5,3132.5,0.8239]
[1738183674558,3.19271,3132.2,3132.0,0.8239]
[1738183674859,3.19274,3132.1,3132.0,0.8239]
[1738183675569,3.19266,3132.2,3132.0,0.8239]
[1738183675741,3.19265,3132.2,3132.0,0.8239]
[1738183676669,3.19183,3133.0,3132.1,0.55]
[1738183676836,3.19183,3133.0,3132.3,0.55]
[1738183677043,3.19183,3133.0,3132.4,3.19241]
[1738183677253,3.19183,3133.0,3132.3,0.55]
[1738183677254,3.19197,3132.9,3132.3,0.55]
[1738183677573,3.19177,3133.1,3132.7,0.8239]
[1738183677749,3.19162,3133.3,3132.7,4.01602]
[1738183677956,3.19162,3133.3,3132.8,3.19201]
[1738183678260,3.19162,3133.3,3132.7,0.8239]
[1738183678445,3.19162,3133.3,3132.7,4.01599]
[1738183678654,3.19135,3133.5,3133.0,0.55]
[1738183678877,3.19075,3134.1,3133.4,0.7942]
[1738183679168,0.7601,3134.6,3133.5,0.55]
[1738183679368,0.7601,3134.6,3133.6,0.55]
[1738183679369,3.19077,3134.1,3133.6,0.55]
[1738183679753,3.95034,3134.6,3133.5,0.55]
[1738183679956,3.19128,3133.6,3133.4,0.7942]
[1738183680358,3.19131,3133.5,3133.4,0.7942]
[1738183680671,3.19124,3133.6,3133.0,3.97413]
[1738183680824,0.395034,3134.5,3133.4,3.19133]
[1738183681025,3.95031,3134.6,3133.5,0.55]
[1738183681026,3.19061,3134.2,3133.5,0.55]
[1738183681272,3.95031,3134.6,3133.8,3.74093]
[1738183681273,3.19022,3134.6,3133.8,3.74093]
[1738183681452,0.7773,3134.9,3133.8,3.74093]
[1738183681656,3.19061,3134.2,3133.9,0.55]
[1738183681870,3.19026,3134.6,3133.9,3.74082]
[1738183682077,3.19026,3134.6,3133.9,4.197342]
[1738183682447,3.19004,3134.8,3134.1,0.55]
[1738183682758,3.18965,3135.2,3134.7,0.8261]
[1738183683162,4.01253,3135.6,3134.7,0.8261]
[1738183683163,3.18941,3135.4,3134.7,0.8261]
[1738183683456,3.18941,3135.4,3134.7,4.01615]
[1738183683457,3.18949,3135.3,3134.7,4.01615]
[1738183683660,3.18971,3135.1,3134.7,0.8261]
[1738183683857,3.18977,3135.1,3134.7,0.8261]
[1738183684080,3.18939,3135.4,3134.8,0.55]
[1738183684244,3.18931,3135.5,3134.9,3.18988]
[1738183684558,3.18954,3135.3,3134.8,3.55]
[1738183684883,3.18976,3135.1,3134.7,0.8261]
[1738183685089,3.18942,3135.4,3134.7,0.8261]
[1738183685383,0.7618,3136.0,3134.9,3.18982]
[1738183685596,0.7618,3136.0,3134.8,0.55]
[1738183685597,3.18949,3135.3,3134.8,0.55]
[1738183685796,3.1893,3135.5,3134.8,0.55]
[1738183685945,3.1893,3135.5,3134.8,3.7399]
[1738183686139,3.18937,3135.5,3134.8,0.55]
[1738183686386,3.18908,3135.7,3134.9,3.0]
[1738183686561,3.18908,3135.7,3135.0,0.55]
[1738183686774,0.7661,3136.4,3135.0,0.55]
[1738183686967,3.18954,3135.3,3134.7,3.8261]
[1738183687170,3.18954,3135.3,3134.8,0.55]
[1738183687447,3.1891,3135.7,3135.1,3.0]
[1738183687713,0.7661,3136.4,3135.2,0.8293]
[1738183687894,3.18916,3135.7,3135.2,0.8293]
[1738183688240,3.18948,3135.4,3135.2,0.8293]
[1738183688489,3.18918,3135.6,3134.3,0.8081]
[1738183688490,3.19046,3134.4,3134.3,0.8081]
[1738183688787,9.56784,3135.5,3133.3,0.64352659]
[1738183688788,3.19101,3133.8,3133.3,0.64352659]
[1738183688997,3.19099,3133.9,3133.3,3.19147]
[1738183689214,3.19053,3134.3,3133.7,3.99921]
[1738183689500,3.19019,3134.7,3134.1,0.55]
[1738183689795,3.19008,3134.8,3134.1,0.55]
[1738183690100,3.19008,3134.8,3134.3,0.55]
[1738183690252,0.63781,3135.7,3134.3,0.55]
[1738183690253,3.18962,3135.2,3134.3,0.55]
[1738183690452,3.18972,3135.1,3134.3,3.55]
[1738183690692,3.18959,3135.2,3134.6,0.55]
[1738183690894,3.1894,3135.4,3134.8,3.73991]
[1738183691194,6.37806,3135.8,3135.1,3.18961]
[1738183691399,3.18917,3135.7,3135.2,0.55]
[1738183691607,3.18836,3136.4,3135.2,0.8104]
[1738183691769,3.18909,3135.7,3135.3,0.55]
[1738183691974,3.18896,3135.9,3135.3,3.73939]
[1738183692200,3.18871,3136.1,3135.4,3.18932]
[1738183692504,0.718674,3136.3,3135.7,0.55]
[1738183692673,3.18859,3136.2,3135.8,0.55]
[1738183692869,3.18843,3136.4,3135.7,0.55]
[1738183693094,3.18863,3136.2,3135.7,0.55]
[1738183693602,3.18843,3136.4,3135.7,3.18901]
[1738183693900,3.18864,3136.2,3135.6,6.18916]
[1738183694101,3.18843,3136.4,3135.7,3.73906]
[1738183694411,3.18886,3136.0,3135.5,0.64046309]
[1738183694708,3.18886,3136.0,3135.4,0.8104]
[1738183694709,3.18928,3135.5,3135.4,0.8104]
[1738183694887,3.19013,3134.7,3134.2,0.7583]
[1738183695263,3.19042,3134.4,3134.2,0.7583]
[1738183695413,3.1905,3134.3,3134.2,0.7583]
[1738183695566,3.19117,3133.7,3133.0,3.19175]
[1738183695772,0.319042,3134.4,3133.2,0.817]
[1738183696122,3.19132,3133.5,3133.2,0.817]
[1738183696616,3.19112,3133.7,3133.2,0.817]
[1738183696813,3.19071,3134.1,3133.2,4.00853]
[1738183697014,0.63413886,3135.0,3133.9,3.19088]
[1738183697183,3.19016,3134.7,3134.2,0.55]
[1738183697716,3.1903,3134.5,3134.1,0.55]
[1738183697886,3.19031,3134.5,3134.1,0.55]
[1738183698173,3.19012,3134.7,3134.1,0.55]
[1738183698374,3.18967,3135.2,3134.4,0.55]
[1738183698610,3.0,3135.8,3134.9,3.18985]
[1738183698611,3.18929,3135.5,3134.9,3.18985]
[1738183698766,3.1896,3135.2,3134.9,0.7927]
[1738183698987,6.37928,3135.2,3134.8,0.55]
[1738183699214,3.18986,3135.0,3134.5,0.7927]
[1738183699364,3.18939,3135.4,3134.8,3.18992]
[1738183699703,3.18968,3135.2,3134.8,0.55]
[1738183700013,3.18946,3135.4,3134.8,0.55]
[1738183700251,3.18975,3135.1,3134.6,0.55]
[1738183700414,3.18967,3135.2,3134.6,6.74016]
[1738183700708,3.18967,3135.2,3134.6,0.55]
[1738183701229,3.508647,3135.2,3134.5,0.7927]
[1738183701373,3.19006,3134.8,3134.2,3.19059]
[1738183701564,3.19006,3134.8,3134.3,3.55]
[1738183701981,0.318967,3135.2,3134.1,0.7877]
[1738183701982,3.1906,3134.2,3134.1,0.7877]
[1738183702196,3.19093,3133.9,3133.7,0.8127]
[1738183702394,3.19093,3133.9,3132.7,0.8127]
[1738183702726,3.19161,3133.3,3132.7,0.8127]
[1738183702967,3.19081,3134.0,3132.7,0.8127]
[1738183703128,3.19195,3132.9,3132.7,0.8127]
[1738183703449,3.19214,3132.7,3132.1,1.40726815]
[1738183703648,3.19162,3133.2,3132.2,0.55]
[1738183703834,3.19219,3132.7,3132.1,0.7694]
[1738183704036,3.19182,3133.1,3132.3,3.0]
[1738183704350,3.19138,3133.5,3132.5,0.55]
[1738183704554,3.19113,3133.7,3133.1,0.55]
[1738183704708,3.19122,3133.6,3133.1,0.55]
[1738183705045,3.19094,3133.9,3133.1,0.55]
[1738183705251,3.19132,3133.5,3133.1,0.55]
[1738183705462,3.19132,3133.5,3133.0,0.7694]
[1738183705629,3.19132,3133.5,3132.6,0.7694]
[1738183705630,3.19183,3133.0,3132.6,0.7694]
[1738183705812,3.19204,3132.8,3132.6,0.7694]
[1738183706163,3.19252,3132.4,3131.7,3.19307]
[1738183706312,0.7577,3133.0,3131.7,3.19307]
[1738183706313,3.19226,3132.6,3131.7,3.19307]
[1738183706513,3.19226,3132.6,3131.8,3.0]
[1738183706713,3.19231,3132.6,3131.9,3.19294]
[1738183706915,3.19238,3132.5,3132.0,0.55]
[1738183707358,3.1924,3132.5,3132.0,0.55]
[1738183707660,3.19201,3132.9,3131.9,3.19294]
[1738183707826,3.19201,3132.9,3132.1,0.8094]
[1738183708160,0.7705,3133.5,3132.1,0.8094]
[1738183708161,3.19159,3133.3,3132.4,3.74242]
[1738183708471,3.19068,3134.2,3133.5,3.19124]
[1738183708612,0.828,3134.6,3133.0,0.8055]
[1738183708613,3.19041,3134.4,3133.7,3.19107]
[1738183709247,3.19061,3134.2,3133.6,3.19119]
[1738183709454,0.828,3134.6,3133.8,0.55]
[1738183709668,0.828,3134.6,3133.2,3.0]
[1738183709847,3.19171,3133.2,3132.5,4.00383]
[1738183710047,3.19145,3133.4,3132.6,0.55]
[1738183710217,0.8251,3134.2,3132.8,0.55]
[1738183710461,3.19115,3133.7,3133.1,3.1917]
[1738183710697,3.19134,3133.5,3133.0,3.55]
[1738183711202,3.19115,3133.7,3133.0,3.55]
[1738183711504,3.19132,3133.5,3133.0,4.224184]
[1738183711651,3.19132,3133.5,3132.9,0.55]
[1738183711860,3.19142,3133.4,3132.9,3.55]
[1738183712255,3.19163,3133.2,3132.5,36.211883]
[1738183712557,3.19163,3133.2,3131.2,3.19363]
[1738183712558,3.19246,3132.4,3132.1,0.7595]
[1738183712757,0.7774,3133.3,3132.1,0.7595]
[1738183712952,3.19225,3132.6,3132.1,0.7595]
[1738183713200,3.19215,3132.7,3132.2,0.55]
[1738183713814,3.19264,3132.2,3132.1,0.7595]
[1738183713954,3.19251,3132.4,3132.1,0.7595]
[1738183714190,3.19194,3132.9,3132.4,0.55]
[1738183714517,3.19203,3132.8,3132.4,0.55]
[1738183714907,3.19194,3132.9,3132.4,0.55]
[1738183715109,3.19194,3132.9,3132.1,0.7595]
[1738183715110,3.1923,3132.6,3132.1,0.7595]
[1738183715415,3.19251,3132.4,3132.1,3.7595]
[1738183715606,3.19229,3132.6,3132.1,3.7595]
[1738183715787,3.19264,3132.2,3131.7,0.8321]
[1738183716234,3.19291,3132.0,3131.7,0.8321]
[1738183716534,3.19296,3131.9,3131.7,0.8321]
[1738183717295,1.138331,3132.5,3131.3,0.7552]
[1738183717512,3.19312,3131.8,3131.3,0.7552]
[1738183717728,3.19312,3131.8,3131.4,0.55]
[1738183718318,3.19275,3132.1,3131.4,0.55]
[1738183718839,3.19275,3132.1,3131.5,3.19331]
[1738183719010,3.19295,3131.9,3131.4,3.55]
[1738183719599,3.19279,3132.1,3131.5,3.19335]
[1738183719948,3.19252,3132.4,3131.8,3.19303]
[1738183720096,3.19245,3132.4,3131.9,0.55]
[1738183720292,3.19217,3132.7,3132.2,1.382]
[1738183720535,3.19226,3132.6,3132.2,1.382]
[1738183720739,0.8059,3133.0,3132.2,1.382]
[1738183720909,3.192,3132.9,3132.2,4.57456]
[1738183721107,0.817,3133.4,3132.2,2.15872]
[1738183721444,3.19145,3133.4,3132.5,0.55]
[1738183721598,3.19145,3133.4,3132.8,3.19195]
[1738183721794,3.19085,3134.0,3133.4,3.19139]
[1738183722008,3.19085,3134.0,3133.4,3.19132]
[1738183722238,0.8019,3134.9,3133.5,0.55]
[1738183722443,3.19006,3134.8,3134.1,3.19065]
[1738183722651,3.18918,3135.6,3133.8,0.55]
[1738183722795,3.19001,3134.8,3134.2,3.55]
[1738183722996,3.19027,3134.6,3134.2,0.55]
[1738183723212,3.19002,3134.8,3134.2,3.19053]
[1738183723545,3.1896,3135.2,3134.6,3.19011]
[1738183723844,3.18986,3135.0,3134.4,3.55]
[1738183724138,3.18986,3135.0,3134.5,0.55]
[1738183724295,3.19012,3134.7,3134.1,3.7651]
[1738183724496,3.19012,3134.7,3134.2,0.55]
[1738183725135,3.1903,3134.5,3134.1,3.7651]
[1738183725370,3.1903,3134.5,3134.1,0.7651]
[1738183725643,3.18972,3135.1,3134.5,0.55]
[1738183725794,3.18961,3135.2,3134.6,3.19017]
[1738183726344,3.18961,3135.2,3134.5,0.55]
[1738183726640,3.18982,3135.0,3134.5,0.55]
[1738183726819,3.1895,3135.3,3134.8,0.55]
[1738183726998,3.1895,3135.3,3134.7,3.19005]
[1738183726999,3.18909,3135.7,3134.9,0.55]
[1738183727199,3.18928,3135.5,3135.0,0.7735]
[1738183727705,3.18949,3135.3,3135.0,0.7735]
[1738183728009,3.18981,3135.0,3134.7,3.0]
[1738183728216,3.18959,3135.2,3134.7,3.0]
[1738183728534,0.8281,3137.3,3135.1,0.55]
[1738183728736,0.8281,3137.3,3135.8,0.55]
[1738183729051,3.18821,3136.6,3136.0,0.55]
[1738183729203,3.18821,3136.6,3136.0,3.73871]
[1738183729551,3.18821,3136.6,3136.0,0.55]
[1738183730045,3.18837,3136.4,3136.0,0.55]
[1738183731853,3.1886,3136.2,3135.9,0.7521]
[1738183732148,3.18837,3136.4,3135.9,0.7521]
[1738183732446,3.18857,3136.2,3135.9,0.7521]
[1738183732654,3.18837,3136.4,3135.9,0.7521]
[1738183733043,3.18848,3136.3,3135.9,0.7521]
[1738183733776,3.18819,3136.6,3136.0,0.55]
[1738183733930,3.18819,3136.6,3136.0,3.7387]
[1738183734368,3.18819,3136.6,3136.0,0.55]
[1738183734575,3.18835,3136.5,3136.0,0.55]
[1738183734779,3.18772,3137.1,3136.0,0.55]
[1738183734946,3.18775,3137.0,3136.0,0.55]
[1738183735283,3.18877,3136.0,3135.9,0.7521]
[1738183735481,3.1892,3135.6,3135.4,0.8233]
[1738183735679,3.18886,3136.0,3135.4,0.8233]
[1738183735836,3.18889,3135.9,3135.5,3.55]
[1738183736043,0.7801,3136.5,3135.5,3.55]
[1738183736377,3.18879,3136.0,3135.5,3.55]
[1738183736690,3.18914,3135.7,3135.4,0.8233]
[1738183736891,3.18873,3136.1,3135.0,0.8043]
[1738183737093,3.18847,3136.3,3135.6,0.55]
[1738183737301,3.18828,3136.5,3135.8,0.55]
[1738183737600,3.18807,3136.7,3136.1,0.55]
[1738183737995,3.18832,3136.5,3135.8,6.73892]
[1738183738150,3.18832,3136.5,3136.0,0.55]
[1738183738490,3.18818,3136.6,3136.0,3.73875]
[1738183738690,3.18819,3136.6,3136.0,3.73875]
[1738183738899,3.18837,3136.4,3135.9,0.55]
[1738183739083,3.18859,3136.2,3135.7,1.4486324]
[1738183739286,3.18863,3136.2,3135.7,1.4486324]
[1738183739590,3.18837,3136.4,3135.8,3.18891]
[1738183739800,3.18837,3136.4,3135.7,4.4486324]
[1738183739801,3.18848,3136.3,3135.7,4.4486324]